Cogmind - Beta 14 @@@ ROGUE MODE // 2024.08.16 @ 20:31:14 Player: f3-rnm Result: Self-destructed Performance ------------- Evolutions (1) 500 Regions Visited (5) 1000 Robots Destroyed (35) 175 Value Destroyed (649) 649 Prototype IDs (24) 480 Alien Tech Used (0) 0 Bonus (525) 525 TOTAL SCORE: 3329 Bonus ------- Follower Combat Kills 225 Aligned with FarCom 300 Cogmind --------- Core Integrity 156/400 Matter 20/300 Energy 280/280 System Corruption 1% Temperature Cool (0) Movement Treading (320) Ox2 Location -9/Exiles Parts ------- > --- POWER (1) -------- Heavy Ion Engine > --- PROPULSION (2) --- Light Treads Light Treads > --- UTILITY (3) ------ Huge Storage Unit > --- WEAPON (3) ------- (None) > --- INVENTORY (25) --- Heavy Ion Engine Wheel Improved Heat Sink High-capacity Storage Unit Structural Scanner Seismic Detector Core Analyzer Utility Shielding Tractor Beam Light Assault Rifle Light Cannon Flak Cannon Mini Grenade Launcher Plasma Cutter Peak State ------------ > --- POWER ------------ Heavy Ion Engine > --- PROPULSION ------- Improved Treads Wheel > --- UTILITY ---------- Improved Heat Sink Huge Storage Unit Medium Armor Plating > --- WEAPON ----------- Spread Laser Spread Laser Beamcaster > --- INVENTORY -------- Heavy Ion Engine Light Treads Light Treads Light Treads Light Treads Improved Treads Improved Heat Sink High-capacity Storage Unit Structural Scanner Seismic Detector Core Analyzer Utility Shielding Medium Armor Plating Medium Armor Plating Tractor Beam Spread Laser Spread Laser Light Assault Rifle Heavy Assault Rifle Heavy Assault Rifle Heavy Assault Rifle Light Cannon Flak Cannon Mini Grenade Launcher Plasma Cutter [Rating: 25] Favorites ----------- Power Heavy Ion Engine Engine Heavy Ion Engine Propulsion Light Treads Treads Light Treads Wheel Wheel Utility Medium Armor Plating Device Improved Heat Sink Storage Huge Storage Unit Protection Medium Armor Plating Weapon Spread Laser Energy Gun Spread Laser Energy Cannon Beam Cannon Ballistic Gun Light Assault Rifle Ballistic Cannon Light Cannon Launcher Mini Grenade Launcher Build | -11 -10 -10 -9 -9 -9 ------- Run | Yrd Mat Min Mat Min Exi Slots Evolved 2 | . . . 2 . . Power . | . . . . . . Propulsion . | . . . . . . Utility 1 | . . . 1 . . Weapon 1 | . . . 1 . . Parts Attached 38 | 6 6 1 10 3 12 Power 4 | 1 . 1 2 . . Engine 4 | 1 . 1 2 . . Core . | . . . . . . Reactor . | . . . . . . Propulsion 8 | 2 . . . 2 4 Treads 7 | 2 . . . 1 4 Leg . | . . . . . . Wheel 1 | . . . . 1 . Hover . | . . . . . . Flight . | . . . . . . Utility 8 | 1 2 . 3 . 2 Device 1 | . . . 1 . . Storage 3 | 1 1 . 1 . . Processor . | . . . . . . Hackware . | . . . . . . Protection 4 | . 1 . 1 . 2 Artifact . | . . . . . . Weapon 18 | 2 4 . 5 1 6 Energy Gun 5 | . . . 3 1 1 Energy Cannon 3 | . 2 . 1 . . Ballistic Gun 7 | 2 1 . . . 4 Ballistic Cannon 1 | . . . 1 . . Launcher 2 | . 1 . . . 1 Special Weapon . | . . . . . . Impact Weapon . | . . . . . . Slashing Weapon . | . . . . . . Piercing Weapon . | . . . . . . Special Melee Weapon . | . . . . . . Unidentified Prototypes 1 | . . . 1 . . Parts Lost 13 | . 2 . . . 11 Power 1 | . 1 . . . . Propulsion 3 | . . . . . 3 Utility 5 | . 1 . . . 4 Weapon 4 | . . . . . 4 Highest Loss Streak 5 | . 1 . . . 5 To Critical Strikes 5 | . . . . . 5 Average Slot Usage (%) 86 | . 95 83 91 100 68 Engine 11 | . 13 12 10 11 11 Treads 19 | . 28 28 22 18 9 Wheel 2 | . . . . 3 7 Device 7 | . . . 9 11 10 Storage 12 | . 14 14 11 11 11 Protection 8 | . 10 . 9 11 10 Energy Gun 13 | . . . 23 33 3 Energy Cannon 4 | . 9 14 1 . . Ballistic Gun 6 | . 17 14 1 . 3 Peak Build Rating 25 | 6 10 9 24 25 22 Average Rating 16 | 4 8 8 18 24 16 On Entrance 11 | . 6 7 9 24 25 Naked Turns . | . . . . . . Heaviest Build 107 | 12 56 49 107 107 105 Greatest Support 43 | 40 40 40 40 40 43 Greatest Overweight (x) 32 | . 1 1 2 10 32 Average Overweight (x) 4 | . . 1 1 5 9 Largest Inventory Capacity 25 | 8 20 20 25 25 25 Average Capacity 22 | 6 15 20 23 25 25 Most Carried 25 | 3 19 20 25 25 25 Average Carried 20 | 1 11 19 22 24 21 Final Capacity 25 | 8 20 20 25 25 25 Final Carried 25 | 3 19 20 25 24 14 Class Distribution -------------------- 61% | Mutant 36% | Tank Dominant Class ---------------- Mutant | -10/Materials Mutant | -10/Mines Mutant | -9/Materials Tank | -9/Mines Mutant | -9/Exiles Resources | -11 -10 -10 -9 -9 -9 ----------- Run | Yrd Mat Min Mat Min Exi Matter Collected 586 | 139 170 101 107 44 25 Remotely . | . . . . . . Salvage Created 952 | . 283 124 361 165 19 Parts 57 | . 24 4 20 9 . Haulers Intercepted 1 | . . . 1 . . Recyclers Shooed 1 | . . . 1 . . Parts Field Recycled . | . . . . . . Retrieved Matter . | . . . . . . Parts Self-Destructed . | . . . . . . Prevented . | . . . . . . Kills | -11 -10 -10 -9 -9 -9 ------- Run | Yrd Mat Min Mat Min Exi Combat Hostiles Destroyed 29 | . 12 3 5 5 4 Guns 19 | . 6 2 5 5 1 Cannons 6 | . 5 1 . . . AOE 4 | . 1 . . . 3 Classes Destroyed 10 | . 2 1 5 1 1 Worker 3 | . . . 1 2 . Tunneler 1 | . . . 1 . . Hauler 1 | . . . 1 . . Recycler 3 | . . 1 1 1 . Mechanic 1 | . . . 1 . . Swarmer 13 | . 8 2 . 3 . Grunt 10 | . 4 1 4 1 . Duelist 1 | . . . . 1 . Sentry 1 | . . . 1 . . Assembled 3 | . . . . . 3 Best Kill Streak 5 | . 5 1 3 2 3 Combat Bots Only 5 | . 5 1 2 2 3 Max Kills in Single Turn 1 | . 1 1 1 1 1 Gunslinging . | . . . . . . Exploded 1 | . 1 . . . 1 Melee . | . . . . . . Uniques/NPCs Destroyed 1 | . . . . . 1 8R-AWN (-9/Exiles) Combat | -11 -10 -10 -9 -9 -9 -------- Run | Yrd Mat Min Mat Min Exi Hostile Shots Fired 214 | . 77 10 10 18 99 Missed 50 | . 17 1 6 4 22 Damage Taken 2383 | . 532 70 48 256 1477 Core 287 | . 43 . 15 20 209 Absorbed by Shields . | . . . . . . Core Remaining (%) 91 | 100 . 82 . . . Volleys Fired 163 | . 47 14 21 15 66 Largest 3 | . 2 2 3 3 3 Hottest 205 | . 80 80 205 205 69 Shots Fired 297 | . 93 28 41 33 102 Gun 252 | . 66 14 41 33 98 Cannon 40 | . 26 14 . . . Launcher 5 | . 1 . . . 4 Special . | . . . . . . Kinetic 134 | . 66 14 . . 54 Thermal 158 | . 26 14 41 33 44 Explosive 5 | . 1 . . . 4 Electromagnetic . | . . . . . . Robot Hit Streak 12 | . 8 5 12 11 12 Robot Miss Streak 7 | . 6 2 4 7 4 Penetration Max . | . . . . . . Secondary Targets 3 | . 2 . . 1 . Max Gunslinging Chain 1 | . 1 . . 1 . Shots Hit Robots 207 | . 52 18 32 28 77 Core Hits 141 | . 17 8 40 29 47 Critical Kills . | . . . . . . Critical Parts Destroyed . | . . . . . . Critical Strikes . | . . . . . . Melee Attacks . | . . . . . . Impact . | . . . . . . Slashing . | . . . . . . Piercing . | . . . . . . Sneak Attacks . | . . . . . . Combat Hostiles . | . . . . . . Follow-up Attacks . | . . . . . . Damage Inflicted 3167 | . 658 258 511 347 1393 Guns 2433 | . 308 81 511 347 1186 Cannons 458 | . 281 177 . . . Explosions 276 | . 69 . . . 207 Melee . | . . . . . . Ramming . | . . . . . . Kinetic 847 | . 308 81 . . 458 Thermal 2044 | . 281 177 511 347 728 Explosive 276 | . 69 . . . 207 Electromagnetic . | . . . . . . Impact . | . . . . . . Slashing . | . . . . . . Piercing . | . . . . . . Highest Corruption 1 | . . . 1 1 1 Average Corruption 1 | . . . 1 1 1 Corruption Purged . | . . . . . . Corruption Blocked . | . . . . . . Effects 24 | . . . 1 7 16 Message Errors 7 | . . . . 3 4 Matter Fused 8 | . . . 1 2 5 Heat Flow Errors 1 | . . . . . 1 Energy Discharges 2 | . . . . . 2 Data Loss (minor) 1 | . . . . . 1 Data Loss (major) 5 | . . . . 2 3 Overload Shots . | . . . . . . Overflow Damage 5 | . 5 . . . . Projectiles . | . . . . . . Explosions 5 | . 5 . . . . Melee . | . . . . . . Knockbacks . | . . . . . . Impact . | . . . . . . Kinetic . | . . . . . . Secondary . | . . . . . . Self-Inflicted Damage . | . . . . . . Shots . | . . . . . . Rammed . | . . . . . . Targets Rammed . | . . . . . . Kicked . | . . . . . . Crushed . | . . . . . . Highest Temperature 363 | . 308 160 278 363 170 Average Temperature 78 | . 79 49 67 112 87 Received Heat Transfer 186 | . 126 . 18 42 . Effects 1 | . . . . 1 . Short Circuit 1 | . . . . 1 . Siege Activations . | . . . . . . Robots Corrupted . | . . . . . . Combat Hostiles . | . . . . . . Parts Fried . | . . . . . . Impact Corruptions . | . . . . . . Robots Melted . | . . . . . . Combat Hostiles . | . . . . . . Parts Melted 4 | . 2 1 1 . . Heat Transferred 2305 | . 592 370 716 449 178 Parts Sabotaged . | . . . . . . Parts Stolen . | . . . . . . Parts Stripped . | . . . . . . Power Chain Reactions . | . . . . . . Alert | -11 -10 -10 -9 -9 -9 ------- Run | Yrd Mat Min Mat Min Exi Peak Influence 239 | . 195 130 239 135 . Initial 57 | . . 44 . 57 . Average 45 | . 55 34 99 29 . Maximum Alert Level 1 | . . . 1 . . Low Security (%) 99 | 100 100 100 97 100 . Level 1 . | . . . 2 . . Level 2 . | . . . . . . Level 3 . | . . . . . . Level 4 . | . . . . . . Level 5 . | . . . . . . High Security . | . . . . . . Max Security . | . . . . . . Squads Dispatched 3 | . 2 . 1 . . Investigation . | . . . . . . Extermination . | . . . . . . Reinforcement 3 | . 2 . 1 . . Assault . | . . . . . . Garrison . | . . . . . . Intercept . | . . . . . . Searches Triggered . | . . . . . . Construction Impeded . | . . . . . . Haulers Reinforced . | . . . . . . Active Scanning Responses . | . . . . . . Cargo Convoy Interrupts . | . . . . . . Stealth | -11 -10 -10 -9 -9 -9 --------- Run | Yrd Mat Min Mat Min Exi Distress Signals 6 | . 5 . 1 . . Communications Jammed . | . . . . . . Distress Signals . | . . . . . . Times Spotted 55 | . 21 7 16 6 5 Peak Tracking Total 9 | . 6 2 3 3 9 Tactical Retreats 2 | . . . 1 1 . Traps | -11 -10 -10 -9 -9 -9 ------- Run | Yrd Mat Min Mat Min Exi Traps Triggered 2 | . . . 1 1 . Indirectly . | . . . . . . Trap Hack Attempts . | . . . . . . Triggered . | . . . . . . Disarmed . | . . . . . . Reprogrammed . | . . . . . . Reused . | . . . . . . Traps Extracted . | . . . . . . Installed . | . . . . . . Triggered 1 | . . . . 1 . Machines | -11 -10 -10 -9 -9 -9 ---------- Run | Yrd Mat Min Mat Min Exi Machines Disabled 8 | . . 1 2 . 5 Max in Single Turn 3 | . . . . . 3 Machines Repaired . | . . . . . . Machines Dismantled . | . . . . . . Machines Sabotaged . | . . . . . . Overloaded Fab Kills . | . . . . . . Hacking | -11 -10 -10 -9 -9 -9 --------- Run | Yrd Mat Min Mat Min Exi Machines Accessed 5 | . 2 1 . 1 1 Terminals 3 | . 2 1 . . . Fabricators . | . . . . . . Repair Stations . | . . . . . . Recycling Units . | . . . . . . Scanalyzers . | . . . . . . Garrison Access . | . . . . . . Total Hacks 6 | . 3 1 . 1 1 Successful 4 | . 1 1 . 1 1 Failed 2 | . 2 . . . . Catastrophic . | . . . . . . Database Lockouts . | . . . . . . Manual 4 | . 3 . . . 1 Terminals 4 | . 3 1 . . . Fabricators . | . . . . . . Repair Stations . | . . . . . . Recycling Units . | . . . . . . Scanalyzers . | . . . . . . Garrison Access . | . . . . . . Terminal Hacks 3 | . . 1 . 1 1 Open Door 1 | . . . . 1 . Zone Layout 1 | . . 1 . . . Derelict Proto ID Bank 1 | . . . . . 1 Fabricator Hacks . | . . . . . . Repair Station Hacks . | . . . . . . Recycling Unit Hacks . | . . . . . . Scanalyzer . | . . . . . . Garrison Access Hacks . | . . . . . . Unauthorized Hacks 1 | . 1 . . . . Terminals 1 | . 1 . . . . Assimilate 1 | . 1 . . . . Fabricators . | . . . . . . Repair Stations . | . . . . . . Recycling Units . | . . . . . . Scanalyzers . | . . . . . . Garrison Access . | . . . . . . Data Cores Recovered . | . . . . . . Used . | . . . . . . Hacking Detections 3 | . 2 1 . . . Full Trace Events . | . . . . . . Feedback Events . | . . . . . . Feedback Blocked . | . . . . . . Robot Schematics Acquired . | . . . . . . Robots Built . | . . . . . . Authchips . | . . . . . . Time . | . . . . . . Total Robot Build Rating . | . . . . . . Part Schematics Acquired . | . . . . . . Parts Built . | . . . . . . Authchips . | . . . . . . Time . | . . . . . . Total Part Build Rating . | . . . . . . Parts Repaired . | . . . . . . Time . | . . . . . . Parts Recycled . | . . . . . . Recycled Matter . | . . . . . . Retrieved Matter . | . . . . . . Retrieved Components . | . . . . . . Parts Scanalyzed . | . . . . . . Part Schematics Acquired . | . . . . . . Parts Damaged . | . . . . . . Bothacking | -11 -10 -10 -9 -9 -9 ------------ Run | Yrd Mat Min Mat Min Exi Used RIF Installer . | . . . . . . Robots Hacked . | . . . . . . Non-combat . | . . . . . . Combat . | . . . . . . Robot Hacks Applied . | . . . . . . Relay Couplers Released . | . . . . . . Fabnet Peak Effective % . | . . . . . . Robots Rewired . | . . . . . . Allies Hacked . | . . . . . . Hacks Repelled . | . . . . . . Allies | -11 -10 -10 -9 -9 -9 -------- Run | Yrd Mat Min Mat Min Exi Total Allies 5 | . . 5 . . . Largest Group 4 | . . 4 4 . . Highest-Rated Group 70 | . . 70 70 . . Highest-Rated Ally 31 | . . 31 31 . . Total Orders . | . . . . . . Ally Attacks 62 | . . 22 40 . . Total Damage 620 | . . 172 448 . . Kills 11 | . . 5 6 . . Allies Corrupted 1 | . . . 1 . . Allies Melted . | . . . . . . Intel | -11 -10 -10 -9 -9 -9 ------- Run | Yrd Mat Min Mat Min Exi Robot Analysis Total . | . . . . . . Derelict Logs Recovered 3 | . . 2 . 1 . Drone Launches . | . . . . . . Drone Recoveries . | . . . . . . Exploration | -11 -10 -10 -9 -9 -9 ------------- Run | Yrd Mat Min Mat Min Exi Turns Passed 6370 | 77 782 1349 742 1856 1564 Spaces Moved 2229 | 47 297 542 218 607 518 Core 23 | 8 . . . . 15 Treads 1497 | 39 297 542 218 360 41 Legs . | . . . . . . Wheels 709 | . . . . 247 462 Hover . | . . . . . . Flight . | . . . . . . Fastest Speed 50 | 50 160 240 240 230 215 Average Speed 256 | 141 210 240 284 283 265 Slowest Speed 1650 | 160 240 240 320 320 1650 Overloaded Moves . | . . . . . . Propulsion Burnouts . | . . . . . . Robots Hopped . | . . . . . . Cave-ins Triggered . | . . . . . . Exploration Rate (%) 59 | 4 49 94 26 98 85 Regions Visited 5 Branch Regions 3 Pre-discovered Areas 1 | . . 1 . . . Known Exits Taken 1 | . . . 1 . . Unknown Exits Taken 4 | 1 1 1 . 1 . Scrap Searched 4 | . . 1 . 3 . Spaces Dug . | . . . . . . Terrain Destroyed 34 | . 18 . . . 16 Melee . | . . . . . . Projectile . | . . . . . . AOE 34 | . 18 . . . 16 Terrain Rammed . | . . . . . . Walls Destroyed . | . . . . . . Machines Disabled . | . . . . . . Actions | -11 -10 -10 -9 -9 -9 --------- Run | Yrd Mat Min Mat Min Exi Total 2641 | 55 374 566 310 719 617 Wait 145 | . 6 8 33 85 13 Move 2224 | 46 296 541 217 606 518 Hop . | . . . . . . Pick Up 43 | 3 17 2 15 4 2 Fast Attach 13 | 6 1 . 6 . . Attach 15 | . 1 1 3 1 9 Detach 1 | . . . 1 . . Swap 10 | . 4 . 1 2 3 Drop 27 | . 2 . 13 6 6 Fire 163 | . 47 14 21 15 66 Melee . | . . . . . . Ram . | . . . . . . Kick . | . . . . . . Crush . | . . . . . . Escape Stasis . | . . . . . . Rewire . | . . . . . . Trap . | . . . . . . Miscellaneous . | . . . . . . Route ------- -11/Scrapyard -10/Materials (discovered 2 exits: [*Mat] / *Min) -10/Mines (discovered 2 exits: [*Mat x2]) -9/Materials (discovered 3 exits: *Mat x2 / *Min) -9/Mines (discovered 4 exits: *Mat x2 / *Exi / [*Zio]) -9/Exiles History --------- Turn | Location | Event 4 | -11/Scrapyard | Discovered new exit (range 15) 78 | -11/Scrapyard | Entered Materials 326 | -10/Materials | Build established: Mutant 590 | -10/Materials | Discovered new exit (range 11) 799 | -10/Materials | Discovered new exit (range 8) 860 | -10/Materials | Entered Mines 1153 | -10/Mines | Learned 2 Materials zone layouts 1153 | -10/Mines | Assisted by bots powering up and referring to "LRC-V3" 1262 | -10/Mines | Discovered new exit (range 13) 1606 | -10/Mines | Learned location of 1 exit from Materials 1669 | -10/Mines | Discovered new exit (range 8) 1755 | -10/Mines | Learned location of Storage (-8) 2209 | -10/Mines | Entered Materials 2209 | -9/Materials | Accompanied by 4 allies 2209 | -9/Materials | Evolved 2 slots: Utility x1, Weapon x1 2210 | -9/Materials | Identified exit to Mines 2211 | -9/Materials | Identified exit to Materials 2214 | -9/Materials | Led the pair of lost Derelicts to an unsafe place 2666 | -9/Materials | Discovered exit to Materials (range 14) 2921 | -9/Materials | Build established: Tank 2951 | -9/Materials | Entered Mines 3023 | -9/Mines | Met a Derelict who couldn't figure out how to use a Trap Extractor 3452 | -9/Mines | Assembled infested the area 3593 | -9/Mines | Learned 4 Materials zone layouts 3930 | -9/Mines | Discovered exit to Materials (range 2) 4376 | -9/Mines | A Derelict revealed a hidden shortcut to a safe place 4395 | -9/Mines | Discovered exit to Materials (range 5) 4798 | -9/Mines | Discovered new exit (range 5) 4807 | -9/Mines | Entered Exiles 4870 | -9/Exiles | Met 8R-AWN 4904 | -9/Exiles | Met EX-HEX 4968 | -9/Exiles | Met EX-BIN 4992 | -9/Exiles | Aligned with FarCom system 4994 | -9/Exiles | Given EX-Vault access code 5046 | -9/Exiles | Opened EX-Vault 5095 | -9/Exiles | Build established: Mutant 5097 | -9/Exiles | Warned to stay clear of 0b10 Research branches 5162 | -9/Exiles | Met EX-DEC 5316 | -9/Exiles | Visited The Gauntlet 5752 | -9/Exiles | Attacked by the Exiles 5939 | -9/Exiles | Core integrity fell below 50% 5974 | -9/Exiles | Lost 5 parts (2n1u2w) 5984 | -9/Exiles | Destroyed 8R-AWN 6371 | -9/Exiles | Self-destructed Last Messages --------------- 05974_ HV Slug penetrates Earth. 05979_ Penetrated by HV Slug. 05979_ HV Slug penetrates Earth. 05979_ Penetrated by HV Slug. 05979_ HV Slug penetrates Earth. 05981_ Earth collapses. 05983_ HV Slug penetrates Wall. 05983_ HV Slug penetrates Earth. 05984_ 8R-AWN destroyed. 05996_ System corrupted: Energy discharge (-103). 06017_ The unstable cave ceiling collapses. 06135_ Acquired 3 matter. 06168_ Acquired 14 matter. 06184_ Acquired 8 matter. 06219_ System corrupted: Matter fused (-6). 06234_ System corrupted: Energy discharge (-100). 06340_ System corrupted: Substantial component data lost. 06365_ Spread Laser destroyed. 06365_ Med. Armor Plating destroyed. 06366_ Imp. Heat Sink destroyed. Map ----- +----------------------------------------------------+ | ???????????????????????????????????????????## | | ???????????#######?????????????????????????#" | | #####??????#!!! "#?????????????????????????#" | | #""##?????# "#?????????????????????????#" | | #?????# "#?????????????????????????#" | | ##???## ""#?????????????#???????????#" | | #####" ""#???????????? """????????#" | | ##" ""?????????????" """????????## | | #"" #??????????????" ?????????# | | # #?????????????"" ?????????#" | | #### ##????????????"" "#????????#" | | ??### #???????????? ""?????????#" | | ###"#" ####??????????" "?????????##" | | !""" "#??????????# #????????##"" | | ######???### ###?######"" | | ## """#####X# #"###""""""" | | # """""" " "" | | " ####"" "" """ " | | """""# #??#### " " | | ## ##?????### | | ## ##????????### | | # #?## ???????????## | | #??? ##????????????## % | | #???##???????????????##" % | | ??????????????????????#"" """""" | | ?????????????????????##" @ ######""" | | ?????????????????????#"" ""##????#### | | ????????????????????##""" """##????????? | | ????????????????????#""" """##?????????? | | ????????????????????#""" ""#??????????? | | ????????????????????#"" ########??### | | ????????????????????#""" ## ####"" | | ????????????????????#"" t """" | | ????????????????????##"" | | ?????????????????????#"""" | | ?????????????????????## | | ??????????????????????#" " | | ??????????????????????#"""" ""## ## | | ??????????????????????#"" ""#### ## | | ??????????????????????#" """"##??# #? | | ??????????????????????#""" """#??## ## | | ??????????????????????## ""##??#! " | | ???????????????????????#"" """##???#" | | ???????????????????????##""" ##????#" | | ????????????????????????##"""" ##?????#!!""! | | ?????????????????????????### #??????###### | | ???????????????????????????##### ##???????????? | | ???????????????????????????????## #????????????? | | ????????????????????????????????# #????????????? | | ????????????????????????????????# #????????????? | +----------------------------------------------------+ Best States ------------- Heat Dissipation 42 Energy Generation 14 Energy Capacity 280 Matter Stores 300 Matter Capacity 300 Sight Range 16 Terrain Scan Density 10 Armor Coverage 225 Evasion (%) 40 Recoil Reduction 2 Item Schematics ----------------- None Robot Schematics ------------------ None Fabricated ------------ Nothing Alien Tech Used ----------------- None Achievements -------------- None Challenges ------------ None Game ------ Seed ChipScatterLeg Manual? 0 Play Time 00:21:01 Cumulative 239.9 hours Start 2024.08.16 @ 19:58:43 End 2024.08.16 @ 20:31:14 Sessions 1 Manual Loads 0 Difficulty Rogue Special Mode None Game No. 250 Rogue 214 Adventurer 36 Explorer 0 Win Type - Total 10 Types 3/0/7/0/0/0/0/0/0 Lore% 61 Gallery% 82 Achievement% 71 Wizard Run 0 Options --------- Layout 0 ASCII 0 Keyboard 0 Movement Mouse Keybinds 0 Fullscreen 1 Font 18/SmallcapsGlow Map View 76x50 Zoom Use 0% Tactical HUD 1 Map Filters NONE Filters NONE Steam 1 RUN: c6b64a0a-0317-4f47-86b3-8c1c9fe6a42d